Cogmind - Beta 13 @@@ ROGUE MODE // 2024.04.01 @ 15:51:11 Player: kasra Result: Self-destructed Performance ------------- Evolutions (2) 1000 Regions Visited (5) 1000 Robots Destroyed (12) 60 Value Destroyed (205) 205 Prototype IDs (23) 460 Alien Tech Used (0) 0 Bonus (300) 300 TOTAL SCORE: 3025 Bonus ------- Aligned with FarCom 300 Cogmind --------- Core Integrity 520/550 Matter 201/300 Energy 310/310 System Corruption 0% Temperature Cool (14) Movement Treading (163) Location -8/Materials Parts ------- > --- POWER (2) -------- Ion Engine Light Nuclear Core > --- PROPULSION (4) --- Light Treads Light Treads Armored Treads > --- UTILITY (3) ------ Small Storage Unit Layered Light Armor Plating PSU Rigger > --- WEAPON (2) ------- (None) > --- INVENTORY (8) ---- Light Assault Rifle Flail Peak State ------------ > --- POWER ------------ Ion Engine > --- PROPULSION ------- Light Treads Light Treads Armored Treads > --- UTILITY ---------- Small Storage Unit Layered Light Armor Plating PSU Rigger > --- WEAPON ----------- Lightning Gun Light Assault Rifle > --- INVENTORY -------- Light Assault Rifle Grenade Launcher Flail [Rating: 24] Favorites ----------- Power Ion Engine Engine Ion Engine Power Core Light Nuclear Core Propulsion Light Treads Treads Light Treads Wheel Compact Wheel Utility Small Storage Unit Device PSU Rigger Storage Small Storage Unit Protection Layered Light Armor Plating Weapon Light Assault Rifle Energy Gun Lightning Gun Ballistic Gun Light Assault Rifle Launcher Grenade Launcher Build | -11 -10 -10 -10 -9 -8 ------- Run | Yrd Mat Min Exi Min Mat Slots Evolved 4 | . . . . . 4 Power 1 | . . . . . 1 Propulsion 2 | . . . . . 2 Utility 1 | . . . . . 1 Weapon . | . . . . . . Parts Attached 24 | 5 7 . 1 2 9 Power 3 | 1 . . 1 . 1 Engine 2 | 1 . . 1 . . Core 1 | . . . . . 1 Reactor . | . . . . . . Propulsion 8 | 1 4 . . . 3 Treads 6 | 1 4 . . . 1 Leg . | . . . . . . Wheel 2 | . . . . . 2 Hover . | . . . . . . Flight . | . . . . . . Utility 3 | 1 . . . 1 1 Device 1 | . . . . . 1 Storage 1 | 1 . . . . . Processor . | . . . . . . Hackware . | . . . . . . Protection 1 | . . . . 1 . Artifact . | . . . . . . Weapon 10 | 2 3 . . 1 4 Energy Gun 1 | . . . . 1 . Energy Cannon . | . . . . . . Ballistic Gun 6 | 2 1 . . . 3 Ballistic Cannon . | . . . . . . Launcher 3 | . 2 . . . 1 Special Weapon . | . . . . . . Impact Weapon . | . . . . . . Slashing Weapon . | . . . . . . Piercing Weapon . | . . . . . . Special Melee Weapon . | . . . . . . Unidentified Prototypes . | . . . . . . Parts Lost 3 | . . . . . 3 Power . | . . . . . . Propulsion . | . . . . . . Utility . | . . . . . . Weapon 3 | . . . . . 3 Highest Loss Streak 2 | . . . . . 2 To Critical Strikes . | . . . . . . Average Slot Usage (%) 79 | . 77 71 74 91 76 Engine 8 | . 10 . 3 14 9 Treads 26 | . 24 28 28 28 23 Device 1 | . . . . . 9 Storage 13 | . 14 14 14 14 9 Protection 2 | . . . . 6 9 Energy Gun 2 | . . . . 6 5 Ballistic Gun 12 | . 16 14 14 7 11 Launcher 11 | . 10 14 14 14 . Naked Turns . | . . . . . . Heaviest Build 23 | 12 14 9 14 21 23 Greatest Support 60 | 20 40 40 40 40 60 Greatest Overweight (x) 6 | . 2 . . . 6 Average Overweight (x) . | . . . . . 1 Largest Inventory Capacity 8 | 8 8 8 8 8 8 Average Capacity 7 | 7 8 8 8 8 8 Most Carried 5 | 5 4 2 2 4 5 Average Carried 2 | 2 2 2 1 2 2 Final Capacity 8 | 8 8 8 8 8 8 Final Carried 4 | 2 2 2 2 4 2 Class Distribution -------------------- 100% | Mutant Dominant Class ---------------- Mutant | -10/Materials Mutant | -10/Mines Mutant | -10/Exiles Mutant | -9/Mines Mutant | -8/Materials Resources | -11 -10 -10 -10 -9 -8 ----------- Run | Yrd Mat Min Exi Min Mat Matter Collected 457 | 217 49 . . 98 93 Remotely . | . . . . . . Salvage Created 174 | . 76 . . . 98 Parts 17 | . 13 . . . 4 Haulers Intercepted . | . . . . . . Recyclers Shooed . | . . . . . . Parts Field Recycled . | . . . . . . Retrieved Matter . | . . . . . . Parts Self-Destructed . | . . . . . . Prevented . | . . . . . . Kills | -11 -10 -10 -10 -9 -8 ------- Run | Yrd Mat Min Exi Min Mat Combat Hostiles Destroyed 8 | . 6 . . . 2 Guns 2 | . . . . . 2 AOE 6 | . 6 . . . . Classes Destroyed 4 | . 3 . . . 1 Builder 3 | . 3 . . . . Watcher 1 | . 1 . . . . Swarmer 6 | . 6 . . . . Grunt 2 | . . . . . 2 Best Kill Streak 9 | . 9 . . . 1 Combat Bots Only 6 | . 6 . . . 1 Max Kills in Single Turn 3 | . 3 . . . 1 Gunslinging . | . . . . . . Exploded 2 | . 2 . . . . Melee . | . . . . . . Uniques/NPCs Destroyed . | . . . . . . Combat | -11 -10 -10 -10 -9 -8 -------- Run | Yrd Mat Min Exi Min Mat Hostile Shots Fired 47 | . 24 . . . 23 Missed 4 | . 3 . . . 1 Damage Taken 657 | . 230 . . . 427 Core 92 | . 62 . . . 30 Absorbed by Shields . | . . . . . . Core Remaining (%) 87 | 100 . . . 75 . Volleys Fired 26 | . 8 . . . 18 Largest 2 | . 2 . . . 2 Hottest 85 | . 50 . . . 85 Shots Fired 47 | . 16 . . . 31 Gun 36 | . 8 . . . 28 Cannon . | . . . . . . Launcher 11 | . 8 . . . 3 Special . | . . . . . . Kinetic 30 | . 8 . . . 22 Thermal . | . . . . . . Explosive 11 | . 8 . . . 3 Electromagnetic 6 | . . . . . 6 Robot Hit Streak 11 | . 3 . . . 11 Robot Miss Streak 3 | . 3 . . . 2 Penetration Max . | . . . . . . Secondary Targets . | . . . . . . Shots Hit Robots 25 | . 5 . . . 20 Core Hits 24 | . 12 . . . 12 Critical Kills . | . . . . . . Critical Parts Destroyed . | . . . . . . Critical Strikes . | . . . . . . Melee Attacks . | . . . . . . Impact . | . . . . . . Slashing . | . . . . . . Piercing . | . . . . . . Sneak Attacks . | . . . . . . Combat Hostiles . | . . . . . . Follow-up Attacks . | . . . . . . Damage Inflicted 571 | . 355 . . . 216 Guns 159 | . 10 . . . 149 Cannons . | . . . . . . Explosions 403 | . 345 . . . 58 Melee . | . . . . . . Ramming 9 | . . . . . 9 Kinetic 119 | . 10 . . . 109 Thermal . | . . . . . . Explosive 403 | . 345 . . . 58 Electromagnetic 40 | . . . . . 40 Impact . | . . . . . . Slashing . | . . . . . . Piercing . | . . . . . . Highest Corruption . | . . . . . . Average Corruption . | . . . . . . Corruption Purged . | . . . . . . Corruption Blocked . | . . . . . . Overload Shots . | . . . . . . Overflow Damage 3 | . 3 . . . . Projectiles . | . . . . . . Explosions 3 | . 3 . . . . Melee . | . . . . . . Knockbacks . | . . . . . . Impact . | . . . . . . Kinetic . | . . . . . . Secondary . | . . . . . . Self-Inflicted Damage 52 | . 52 . . . . Shots 3 | . 3 . . . . Rammed 2 | . . . . . 2 Targets Rammed 2 | . . . . . 2 Kicked . | . . . . . . Crushed . | . . . . . . Highest Temperature 126 | . 10 . . . 126 Average Temperature 38 | . 7 . . . 49 Received Heat Transfer 285 | . 24 . . . 261 Siege Activations . | . . . . . . Robots Corrupted . | . . . . . . Combat Hostiles . | . . . . . . Parts Fried . | . . . . . . Impact Corruptions . | . . . . . . Robots Melted . | . . . . . . Combat Hostiles . | . . . . . . Parts Melted . | . . . . . . Heat Transferred . | . . . . . . Parts Sabotaged . | . . . . . . Parts Stolen . | . . . . . . Parts Stripped . | . . . . . . Power Chain Reactions . | . . . . . . Alert | -11 -10 -10 -10 -9 -8 ------- Run | Yrd Mat Min Exi Min Mat Peak Influence 241 | . 241 93 . . 75 Initial 93 | . . 93 . . . Average 44 | . 155 93 . . 31 Maximum Alert Level 1 | . 1 . . . . Low Security (%) 87 | 100 38 100 . 100 100 Level 1 12 | . 61 . . . . Level 2 . | . . . . . . Level 3 . | . . . . . . Level 4 . | . . . . . . Level 5 . | . . . . . . High Security . | . . . . . . Max Security . | . . . . . . Squads Dispatched 4 | . 1 . . . 3 Investigation 2 | . 1 . . . 1 Extermination . | . . . . . . Reinforcement 2 | . . . . . 2 Assault . | . . . . . . Garrison . | . . . . . . Intercept . | . . . . . . Searches Triggered . | . . . . . . Construction Impeded . | . . . . . . Haulers Reinforced . | . . . . . . Active Scanning Responses . | . . . . . . Cargo Convoy Interrupts . | . . . . . . Stealth | -11 -10 -10 -10 -9 -8 --------- Run | Yrd Mat Min Exi Min Mat Distress Signals 2 | . 1 . . . 1 Communications Jammed . | . . . . . . Distress Signals . | . . . . . . Times Spotted 20 | . 10 . . . 10 Peak Tracking Total 6 | . 3 . . . 6 Tactical Retreats 1 | . 1 . . . . Traps | -11 -10 -10 -10 -9 -8 ------- Run | Yrd Mat Min Exi Min Mat Traps Triggered 3 | . 3 . . . . Indirectly . | . . . . . . Trap Hack Attempts . | . . . . . . Triggered . | . . . . . . Disarmed . | . . . . . . Reprogrammed . | . . . . . . Reused . | . . . . . . Traps Extracted . | . . . . . . Installed . | . . . . . . Triggered . | . . . . . . Machines | -11 -10 -10 -10 -9 -8 ---------- Run | Yrd Mat Min Exi Min Mat Machines Disabled 2 | . 2 . . . . Max in Single Turn 1 | . 1 . . . . Machines Repaired . | . . . . . . Machines Dismantled . | . . . . . . Machines Sabotaged . | . . . . . . Overloaded Fab Kills . | . . . . . . Hacking | -11 -10 -10 -10 -9 -8 --------- Run | Yrd Mat Min Exi Min Mat Machines Accessed 6 | . 2 . 1 2 1 Terminals 4 | . 2 . . 1 1 Fabricators . | . . . . . . Repair Stations . | . . . . . . Recycling Units . | . . . . . . Scanalyzers . | . . . . . . Garrison Access . | . . . . . . Total Hacks 9 | . 3 . 1 2 3 Successful 6 | . 2 . 1 1 2 Failed 3 | . 1 . . 1 1 Catastrophic . | . . . . . . Database Lockouts . | . . . . . . Manual 1 | . . . 1 . . Terminals 7 | . 3 . . 1 3 Fabricators . | . . . . . . Repair Stations . | . . . . . . Recycling Units . | . . . . . . Scanalyzers . | . . . . . . Garrison Access . | . . . . . . Terminal Hacks 6 | . 2 . 1 1 2 Record 4 | . 2 . . . 2 Open Door 1 | . . . . 1 . Derelict Proto ID Bank 1 | . . . 1 . . Fabricator Hacks . | . . . . . . Repair Station Hacks . | . . . . . . Recycling Unit Hacks . | . . . . . . Scanalyzer . | . . . . . . Garrison Access Hacks . | . . . . . . Unauthorized Hacks . | . . . . . . Terminals . | . . . . . . Fabricators . | . . . . . . Repair Stations . | . . . . . . Recycling Units . | . . . . . . Scanalyzers . | . . . . . . Garrison Access . | . . . . . . Data Cores Recovered . | . . . . . . Used . | . . . . . . Hacking Detections 2 | . . . . 1 1 Full Trace Events 1 | . . . . . 1 Feedback Events . | . . . . . . Feedback Blocked . | . . . . . . Robot Schematics Acquired . | . . . . . . Robots Built . | . . . . . . Authchips . | . . . . . . Time . | . . . . . . Total Robot Build Rating . | . . . . . . Part Schematics Acquired . | . . . . . . Parts Built . | . . . . . . Authchips . | . . . . . . Time . | . . . . . . Total Part Build Rating . | . . . . . . Parts Repaired . | . . . . . . Time . | . . . . . . Parts Recycled . | . . . . . . Recycled Matter . | . . . . . . Retrieved Matter . | . . . . . . Retrieved Components . | . . . . . . Parts Scanalyzed . | . . . . . . Part Schematics Acquired . | . . . . . . Parts Damaged . | . . . . . . Bothacking | -11 -10 -10 -10 -9 -8 ------------ Run | Yrd Mat Min Exi Min Mat Used RIF Installer . | . . . . . . Robots Hacked . | . . . . . . Non-combat . | . . . . . . Combat . | . . . . . . Robot Hacks Applied . | . . . . . . Relay Couplers Released . | . . . . . . Fabnet Peak Effective % . | . . . . . . Robots Rewired . | . . . . . . Allies Hacked . | . . . . . . Hacks Repelled . | . . . . . . Allies | -11 -10 -10 -10 -9 -8 -------- Run | Yrd Mat Min Exi Min Mat Total Allies 2 | . . 2 . . . Largest Group 2 | . . 2 2 . . Highest-Rated Group 46 | . . 46 46 . . Highest-Rated Ally 31 | . . 31 31 . . Total Orders . | . . . . . . Ally Attacks . | . . . . . . Total Damage . | . . . . . . Kills . | . . . . . . Allies Corrupted . | . . . . . . Allies Melted . | . . . . . . Intel | -11 -10 -10 -10 -9 -8 ------- Run | Yrd Mat Min Exi Min Mat Robot Analysis Total . | . . . . . . Derelict Logs Recovered 1 | . . . . 1 . Drone Launches . | . . . . . . Drone Recoveries . | . . . . . . Exploration | -11 -10 -10 -10 -9 -8 ------------- Run | Yrd Mat Min Exi Min Mat Turns Passed 1643 | 111 216 64 615 426 211 Spaces Moved 937 | 63 114 41 384 263 72 Core 20 | 2 2 . . . 16 Treads 917 | 61 112 41 384 263 56 Legs . | . . . . . . Wheels . | . . . . . . Hover . | . . . . . . Flight . | . . . . . . Fastest Speed 50 | 50 150 160 160 160 160 Average Speed 163 | 156 159 160 160 160 204 Slowest Speed 350 | 160 160 160 160 160 350 Overloaded Moves . | . . . . . . Propulsion Burnouts . | . . . . . . Robots Hopped . | . . . . . . Cave-ins Triggered . | . . . . . . Exploration Rate (%) 28 | 5 19 11 77 54 6 Regions Visited 5 Branch Regions 3 Pre-discovered Areas 1 | . . . . 1 . Known Exits Taken . | . . . . . . Unknown Exits Taken 5 | 1 1 1 1 1 . Scrap Searched . | . . . . . . Spaces Dug . | . . . . . . Terrain Destroyed 67 | . 46 . . . 21 Melee . | . . . . . . Projectile . | . . . . . . AOE 67 | . 46 . . . 21 Terrain Rammed . | . . . . . . Walls Destroyed . | . . . . . . Machines Disabled . | . . . . . . Actions | -11 -10 -10 -10 -9 -8 --------- Run | Yrd Mat Min Exi Min Mat Total 1010 | 76 133 40 385 268 108 Wait 1 | . . . . 1 . Move 932 | 62 113 40 383 262 72 Hop . | . . . . . . Pick Up 21 | 8 5 . 1 3 4 Fast Attach . | . . . . . . Attach 19 | 5 5 . 1 1 7 Detach 1 | . . . . . 1 Swap 5 | . 2 . . 1 2 Drop 3 | 1 . . . . 2 Fire 26 | . 8 . . . 18 Melee . | . . . . . . Ram . | . . . . . . Kick . | . . . . . . Crush 2 | . . . . . 2 Escape Stasis . | . . . . . . Rewire . | . . . . . . Trap . | . . . . . . Miscellaneous . | . . . . . . Route ------- -11/Scrapyard -10/Materials -10/Mines -10/Exiles -9/Mines (discovered 2 exits: *Mat x2) -8/Materials History --------- Turn | Location | Event 27 | -11/Scrapyard | Discovered new exit (range 15) 112 | -11/Scrapyard | Entered Materials 205 | -10/Materials | Discovered new exit (range 15) 300 | -10/Materials | Build established: Mutant 328 | -10/Materials | Entered Mines 386 | -10/Mines | Deemed a non-threat by the Exiles lab entrance 386 | -10/Mines | Discovered new exit (range 5) 392 | -10/Mines | Entered Exiles 392 | -10/Exiles | Accompanied by 2 allies 422 | -10/Exiles | Led the pair of lost Derelicts to a safe place 440 | -10/Exiles | Met 8R-AWN 463 | -10/Exiles | Met EX-HEX 524 | -10/Exiles | Met EX-DEC 560 | -10/Exiles | Visited The Gauntlet 717 | -10/Exiles | Met EX-BIN 752 | -10/Exiles | Aligned with FarCom system 754 | -10/Exiles | Given EX-Vault access code 805 | -10/Exiles | Opened EX-Vault 854 | -10/Exiles | Found PSU Rigger 886 | -10/Exiles | Warned to stay clear of 0b10 Research branches 990 | -10/Exiles | Discovered new exit (range 10) 1007 | -10/Exiles | Left Exiles lab with PSU Rigger 1007 | -10/Exiles | Entered Mines 1047 | -9/Mines | Learned location of Zion (-7) 1047 | -9/Mines | Discovered new exit (range 7) 1228 | -9/Mines | Met a Derelict who couldn't figure out how to use a Trap Extractor 1376 | -9/Mines | Discovered new exit (range 11) 1433 | -9/Mines | Entered Materials 1433 | -8/Materials | Evolved 4 slots: Power x1, Propulsion x2, Utility x1 1644 | -8/Materials | Self-destructed Last Messages --------------- K-01 Serf collects debris. U-05 Engineer lays Concrete. U-05 Engineer builds a Wall. U-05 Engineer lays Concrete. Acquired Lgt. Nuclear Core. U-05 Engineer lays Concrete. G-47 Trooper destroyed. U-05 Engineer lays Concrete. LJ-TPH(g) suffers critical hit (Burn). G-47 Trooper destroyed. LJ-TPH(g) heat damages Imp. Heat Sink. Slammed into K-01 Serf. U-05 Engineer lays Concrete. ALERT: Hostiles spotted, dispatching reinforcements to Terminal M001. U-05 Engineer lays Concrete. Critical hit (Burn: +37). G-47 Trooper destroyed. Critical hit (Burn: +37). Lgt. Assault Rifle destroyed. Map ----- +----------------------------------------------------+ | ????????????????????????????????????? | | ????????????????????????????????????? | | ????????????????????????????????????? | | ????????????????????????????????????? | | ????????????????????????????????????? | | ????????????????????????????????????? | | ????????????????????????????????????? | | ????????????????????????????????????? | | ????????????????????????????????????? | | ???????????? ???????????????????????? | | ???????????? ???????????????????????? | | ???????????? ??##+??????????????????? | | ???????????? ?? ??????????????????? | | ???????????? ?? ??????????????????? | | ???????????? ?# ??????????????????? | | ???????????? ?# ??????????????????? | | ???????????# ## ????g?????????????? | | ???????????# ##! ??????????????????? | | ???????????#u## ]?????w???????????? | | ???????????# ## h ?????????????????? | | ???????????# ## ?????? #??????????? | | ???????????# ## ????? #??????????? | | ?????????### # ##### ???????????? | | ?????????# # # [%= ?????????????? | | ?????????? # ## ???????????????? | | ?????????###@## =[ ????????????????? | | ???????#####g###/####???????????????? | | ???????# !% %! #???????????????? | | ???????# #???????????????? | | ???????# = #???????????????? | | ???????# #???????????????? | | ???????# o! #???????????????? | | ???????####+#########???????????????? | | ??????????# # #???????????????? | | ??????????# # "T" #???????????????? | | ??????????# # #???????????????? | | ????????### # """ #???????????????? | | ?######## # """ #???????????????? | | ?# """ !# + """ #???????????????? | | ?# "T" # # #???????????????? | | ?# + # """ #???????????????? | | ?# !!= # # """ #???????????????? | | ?#[ !!= # # """ #???????????????? | | ?# !! # # #???????????????? | | ?####################???????????????? | | ????????????????????????????????????? | | ????????????????????????????????????? | | ????????????????????????????????????? | | ????????????????????????????????????? | | ????????????????????????????????????? | +----------------------------------------------------+ Best States ------------- Heat Dissipation 31 Energy Generation 19 Energy Capacity 310 Matter Stores 267 Matter Capacity 300 Sight Range 16 Terrain Scan Density 10 Armor Coverage 150 Evasion (%) 40 Recoil Reduction 3 Item Schematics ----------------- None Robot Schematics ------------------ None Fabricated ------------ Nothing Alien Tech Used ----------------- None Achievements -------------- None Challenges ------------ None Game ------ Seed WeaponHugeInterpreter Manual? 0 Play Time 00:15:42 Cumulative 1.4 hours Start 2024.03.31 @ 23:29:53 End 2024.04.01 @ 15:51:11 Sessions 3 Manual Loads 0 Difficulty Rogue Special Mode None Game No. 6 Rogue 6 Adventurer 0 Explorer 0 Win Type - Total 0 Types 0/0/0/0/0/0/0/0/0 Lore% 10 Gallery% 4 Achievement% 5 Wizard Run 0 Options --------- Layout 1 ASCII 0 Keyboard 0 Movement Mouse Keybinds 0 Fullscreen 1 Font 32/SmallcapsGlow Map View 50x40 Zoom Use 0% Tactical HUD 0 Map Filters NONE Filters NONE Steam 1 RUN: 7cfc60b5-fba0-448f-95ba-828459565f3c